bitfinex/quotes_BTCUSD_20241001
["timestamp","ask_amount","ask_price","bid_price","bid_amount"]
[1727793014587,0.16122188,62840.0,62839.0,0.2630615]
[1727793014793,0.16122188,62840.0,62839.0,0.2860615]
[1727793015458,0.16122188,62840.0,62839.0,0.63835406]
[1727793015669,0.16722188,62840.0,62839.0,0.63935406]
[1727793015912,0.16722188,62840.0,62839.0,0.63835406]
[1727793015913,0.16122188,62840.0,62839.0,0.63835406]
[1727793016171,0.16122188,62840.0,62839.0,0.64265406]
[1727793016362,0.16122188,62840.0,62839.0,1.00265406]
[1727793016597,0.16322188,62840.0,62839.0,1.00265406]
[1727793016818,9.5e-07,62840.0,62839.0,1.03647406]
[1727793017036,9.5e-07,62840.0,62839.0,0.86365406]
[1727793017250,0.23936234,62852.0,62851.0,0.264406]
[1727793017502,0.23936234,62852.0,62851.0,0.410422]
[1727793017728,0.23936234,62852.0,62851.0,0.283106]
[1727793017949,0.0007,62858.0,62855.0,0.001]
[1727793018173,0.0007,62858.0,62857.0,0.1]
[1727793018414,0.0007,62858.0,62850.0,0.318217]
[1727793018415,0.0007,62858.0,62851.0,0.001]
[1727793018671,0.001,62852.0,62851.0,0.101]
[1727793018886,0.001,62852.0,62847.0,0.123]
[1727793018887,0.0007,62846.0,62845.0,0.159121]
[1727793019306,0.0007,62850.0,62849.0,0.159109]
[1727793019748,0.0007,62850.0,62848.0,0.159113]
[1727793020233,0.0007,62850.0,62849.0,0.1]
[1727793020450,0.0007,62850.0,62848.0,0.159112]
[1727793020451,0.0007,62840.0,62839.0,0.0029255]
[1727793020884,0.159834,62840.0,62839.0,0.0029255]
[1727793021108,0.159834,62840.0,62837.0,0.000822]
[1727793021109,0.0007,62838.0,62837.0,0.000822]
[1727793021333,0.3162968,62838.0,62837.0,0.000822]
[1727793021976,0.1571578,62838.0,62837.0,0.000822]
[1727793022214,0.0007,62838.0,62837.0,0.159963]
[1727793022422,0.2758,62840.0,62837.0,0.000822]
[1727793022632,0.2818,62840.0,62839.0,0.160136]
[1727793022837,0.2758,62840.0,62839.0,0.159136]
[1727793023260,0.2751,62840.0,62839.0,0.159136]
[1727793023490,0.2758,62840.0,62837.0,0.000822]
[1727793023689,0.159839,62838.0,62837.0,0.000822]
[1727793023896,0.1571578,62838.0,62837.0,0.000822]
[1727793024109,0.3162968,62838.0,62837.0,0.000822]
[1727793024779,0.159854,62832.0,62831.0,0.000822]
[1727793025043,0.3163118,62832.0,62831.0,0.000822]
[1727793025692,0.5029118,62832.0,62831.0,0.000822]
[1727793025896,0.8352278,62832.0,62831.0,0.001822]
[1727793026363,0.66477,62832.0,62831.0,0.159979]
[1727793026790,0.48847,62832.0,62831.0,0.283979]
[1727793027237,0.47747,62832.0,62831.0,0.282979]
[1727793027665,0.47817,62832.0,62831.0,0.100822]
[1727793027876,0.47917,62832.0,62831.0,0.000822]
[1727793028334,0.6346278,62832.0,62831.0,0.000822]
[1727793028783,0.49917,62832.0,62831.0,0.159979]
[1727793028994,0.48617,62832.0,62831.0,0.159979]
[1727793029412,0.49717,62832.0,62831.0,0.159979]
[1727793029619,0.49717,62832.0,62831.0,0.000822]
[1727793029834,0.48617,62832.0,62831.0,0.000822]
[1727793030051,0.47817,62832.0,62831.0,0.000822]
[1727793030252,0.49117,62832.0,62831.0,0.000822]
[1727793030463,0.50017,62832.0,62831.0,0.000822]
[1727793030681,0.48717,62832.0,62831.0,0.000822]
[1727793030907,0.47817,62832.0,62831.0,0.159979]
[1727793031137,0.48617,62832.0,62831.0,0.159979]
[1727793031376,1.0434988,62832.0,62831.0,0.000822]
[1727793031589,0.9948818,62832.0,62831.0,0.000822]
[1727793032342,1.0038818,62832.0,62831.0,0.000822]
[1727793033057,0.8447278,62832.0,62831.0,0.000822]
[1727793033328,1.0038818,62832.0,62831.0,0.000822]
[1727793034047,1.0853818,62832.0,62831.0,0.000822]
[1727793034557,1.1103341,62832.0,62831.0,0.000822]
[1727793036032,1.1013341,62832.0,62831.0,0.000822]
[1727793036524,1.1153341,62832.0,62831.0,0.000822]
[1727793036758,1.1013341,62832.0,62831.0,0.000822]
[1727793037018,1.1013341,62832.0,62813.0,0.23936234]
[1727793037019,0.0007,62817.0,62816.0,0.159195]
[1727793037258,0.0007,62814.0,62813.0,0.23936234]
[1727793037503,0.0007,62810.0,62808.0,0.160035]
[1727793037737,0.47817,62810.0,62809.0,0.160036]
[1727793037954,0.63738,62810.0,62809.0,0.000824]
[1727793038171,0.47817,62810.0,62809.0,0.000824]
[1727793038614,0.63738,62810.0,62809.0,0.000824]
[1727793038867,0.95028458,62810.0,62809.0,0.000824]
[1727793039340,0.7938378,62810.0,62809.0,0.000824]
[1727793039564,0.354812,62809.0,62808.0,0.000822]
[1727793039780,0.9887398,62809.0,62808.0,0.000822]
[1727793041129,0.9997398,62809.0,62808.0,0.000822]
[1727793041574,0.8405278,62809.0,62808.0,0.000822]
[1727793041798,0.68407,62809.0,62808.0,0.160037]
[1727793042022,0.67307,62809.0,62808.0,0.161037]
[1727793042249,0.67307,62809.0,62808.0,0.160037]
[1727793042477,0.67307,62809.0,62808.0,0.000822]
[1727793042737,1.02769778,62809.0,62808.0,0.000822]
[1727793042975,1.01369778,62809.0,62808.0,0.000822]
[1727793043435,1.01369778,62809.0,62806.0,0.000824]
[1727793043436,0.164917,62807.0,62806.0,0.000824]
[1727793043668,0.8743448,62807.0,62806.0,0.000824]
[1727793044430,0.8743448,62807.0,62801.0,0.0004]
[1727793044431,0.0007,62802.0,62801.0,0.0004]
[1727793044667,1.26211333,62802.0,62801.0,0.0004]
[1727793044896,1.41856011,62802.0,62801.0,0.0004]
[1727793045121,1.28707823,62802.0,62801.0,0.0004]
[1727793047760,1.30107823,62802.0,62801.0,0.0004]
[1727793048027,1.0289227,62802.0,62801.0,0.0004]
[1727793048260,0.8696927,62802.0,62801.0,0.0004]
[1727793048477,1.0289227,62802.0,62801.0,0.0004]
[1727793049318,1.31507823,62802.0,62801.0,0.0004]
[1727793049741,1.27611333,62802.0,62801.0,0.0004]
[1727793050182,1.0169578,62802.0,62801.0,0.0004]
[1727793050643,1.0029578,62802.0,62801.0,0.0004]
[1727793050867,1.0169578,62802.0,62801.0,0.0004]
[1727793051095,1.0259578,62802.0,62801.0,0.0004]
[1727793051320,0.9989578,62802.0,62801.0,0.0004]
[1727793051528,0.9899578,62802.0,62801.0,0.001222]
[1727793051746,1.0039578,62802.0,62801.0,0.001222]
[1727793051990,1.0179578,62802.0,62801.0,0.001222]
[1727793052411,1.0039578,62802.0,62801.0,0.001222]
[1727793053056,1.01492167,62802.0,62801.0,0.001222]
[1727793053289,1.02892167,62802.0,62801.0,0.001222]
[1727793053504,1.04292167,62802.0,62801.0,0.001222]
[1727793053942,1.45852398,62802.0,62801.0,0.001222]
[1727793054143,1.45752398,62802.0,62801.0,0.001222]
[1727793054393,1.47152398,62802.0,62801.0,0.001222]
[1727793054632,1.55732398,62802.0,62801.0,0.001222]
[1727793054874,0.159953,62793.0,62792.0,0.000822]
[1727793055095,1.14632973,62793.0,62792.0,0.000822]
[1727793055314,1.33123633,62793.0,62792.0,0.000822]
[1727793055547,1.36120443,62793.0,62792.0,0.000822]
[1727793055838,1.36220443,62793.0,62792.0,0.000822]
[1727793056072,0.159971,62786.0,62785.0,0.000822]
[1727793056298,1.33815433,62786.0,62785.0,0.000822]
[1727793056525,0.159981,62782.0,62778.0,0.23936234]
[1727793056732,0.7989088,62782.0,62776.0,0.0132965]
[1727793056974,0.9881088,62782.0,62776.0,0.0132965]
[1727793057215,0.164994,62777.0,62776.0,0.0132965]
[1727793057466,1.23890002,62777.0,62776.0,0.0132965]
[1727793057906,0.81029771,62777.0,62776.0,0.0132965]
[1727793058126,0.83527239,62777.0,62776.0,0.0132965]
[1727793058427,1.12142792,62777.0,62776.0,0.0132965]
[1727793058910,1.13542792,62777.0,62776.0,0.0132965]
[1727793059365,1.12142792,62777.0,62776.0,0.0132965]
[1727793059602,1.00334326,62777.0,62776.0,0.0132965]
[1727793059852,0.8079218,62777.0,62776.0,0.0132965]
[1727793060098,0.8219218,62777.0,62776.0,0.0132965]
[1727793060318,0.8079218,62777.0,62776.0,0.0132965]
[1727793060766,0.8219218,62777.0,62776.0,0.0132965]
[1727793061003,0.96436858,62777.0,62776.0,0.0132965]
[1727793061446,0.96436858,62777.0,62768.0,0.070823]
[1727793061447,0.160014,62769.0,62768.0,0.070823]
[1727793061667,1.07209733,62769.0,62768.0,0.070823]
[1727793061875,1.26639733,62769.0,62768.0,0.070823]
[1727793062123,0.9892418,62769.0,62768.0,0.070823]
[1727793062570,1.28039733,62769.0,62768.0,0.070823]
[1727793062997,1.0032418,62769.0,62768.0,0.070823]
[1727793063210,0.9892418,62769.0,62768.0,0.070823]
[1727793063682,1.0032418,62769.0,62768.0,0.070823]
[1727793063896,1.0172418,62769.0,62768.0,0.070823]
[1727793064111,1.02821929,62769.0,62768.0,0.070823]
[1727793064322,1.04221929,62769.0,62768.0,0.070823]
[1727793065232,0.53044749,62769.0,62768.0,0.230139]
[1727793065693,0.68760529,62769.0,62768.0,0.070823]
[1727793065946,0.92871929,62769.0,62768.0,0.070823]
[1727793066399,1.10211929,62769.0,62768.0,0.070823]
[1727793066622,1.12011929,62769.0,62768.0,0.070823]
[1727793066836,1.28456607,62769.0,62768.0,0.070823]
[1727793067263,1.10111929,62769.0,62768.0,0.070823]
[1727793067478,1.09611929,62769.0,62768.0,0.070823]
[1727793067696,1.10511929,62769.0,62768.0,0.070823]
[1727793067914,1.09111929,62769.0,62768.0,0.070823]
[1727793068123,1.08811929,62769.0,62768.0,0.070823]
[1727793068344,1.10211929,62769.0,62768.0,0.070823]
[1727793068778,1.5167216,62769.0,62768.0,0.070823]
[1727793068987,1.5357216,62769.0,62768.0,0.070823]
[1727793069202,1.5497216,62769.0,62768.0,0.070823]
[1727793069863,1.0771418,62769.0,62768.0,0.070823]
[1727793070306,0.8360278,62769.0,62768.0,0.070823]
[1727793070514,0.6346278,62769.0,62768.0,0.070823]
[1727793070725,0.7939418,62769.0,62768.0,0.070823]
[1727793070925,0.6346278,62769.0,62768.0,0.230139]
[1727793071181,0.50617,62769.0,62768.0,0.070823]
[1727793071409,0.50617,62769.0,62768.0,0.230139]
[1727793071609,0.50617,62769.0,62768.0,0.231139]
[1727793071610,0.49217,62769.0,62768.0,0.231139]
[1727793071837,0.49147,62769.0,62768.0,0.60329453]
[1727793072046,0.40867,62769.0,62768.0,0.99260878]
[1727793072270,0.36737,62769.0,62768.0,1.12206658]
[1727793072506,0.23936234,62787.0,62786.0,0.160271]
[1727793072718,0.23936234,62787.0,62786.0,0.260271]
[1727793072939,0.0007,62790.0,62789.0,0.160263]
[1727793073154,0.47849,62790.0,62789.0,0.160263]
[1727793073376,0.50345487,62790.0,62789.0,0.160263]
[1727793073825,0.50275487,62790.0,62789.0,0.260263]
[1727793074030,0.50275487,62790.0,62783.0,0.160278]
[1727793074031,0.0007,62784.0,62783.0,0.160278]
[1727793074245,0.0007,62784.0,62783.0,0.260278]
[1727793074246,0.47849,62784.0,62783.0,0.260278]
[1727793075088,0.47849,62784.0,62783.0,0.101]
[1727793075302,0.47949,62784.0,62783.0,0.003]
[1727793075516,0.47949,62784.0,62783.0,0.162278]
[1727793075517,0.50445828,62784.0,62783.0,0.162278]
[1727793075739,0.50445828,62784.0,62783.0,0.262278]
[1727793075740,0.50375828,62784.0,62783.0,0.262278]
[1727793075952,0.50575828,62784.0,62783.0,0.262278]
[1727793076163,0.50475828,62784.0,62783.0,0.260278]
[1727793077205,0.0007,62779.0,62775.0,0.001]
[1727793077463,0.47779,62778.0,62774.0,0.001]
[1727793077665,0.47779,62778.0,62773.0,0.001]
[1727793077666,0.0007,62774.0,62773.0,0.001]
[1727793077876,0.47849,62774.0,62769.0,0.318623]
[1727793078085,0.0007,62771.0,62770.0,0.001]
[1727793078311,0.0007,62771.0,62768.0,0.070823]
[1727793078312,0.7942578,62771.0,62769.0,0.001]
[1727793078517,0.241714,62769.0,62768.0,0.070823]
[1727793078763,0.8759618,62769.0,62768.0,0.070823]
[1727793078990,0.7166478,62769.0,62768.0,0.070823]
[1727793079205,0.47849,62769.0,62768.0,0.18137388]
[1727793079629,0.47779,62769.0,62768.0,0.18137388]
[1727793080270,0.47779,62769.0,62768.0,0.28137388]
[1727793081392,0.49179,62769.0,62768.0,0.28237388]
[1727793081626,0.47779,62769.0,62768.0,0.28237388]
[1727793081836,0.47779,62769.0,62768.0,0.28437388]
[1727793082047,0.6359478,62769.0,62768.0,0.02405788]
[1727793082274,0.7154478,62769.0,62768.0,0.02405788]
[1727793082485,0.96571658,62769.0,62768.0,0.02205788]
[1727793082697,0.8737618,62769.0,62768.0,0.02205788]
[1727793082910,1.11312414,62769.0,62768.0,0.02205788]
[1727793083121,0.160032,62762.0,62761.0,0.0004]
[1727793083352,1.06643533,62762.0,62761.0,0.0004]
[1727793083564,0.7942798,62762.0,62761.0,0.0004]
[1727793083997,0.65992834,62762.0,62761.0,0.0004]
[1727793084232,0.81926034,62762.0,62761.0,0.0004]
[1727793084866,0.83326034,62762.0,62761.0,0.0014]
[1727793085326,1.16960712,62762.0,62761.0,0.0004]
[1727793085556,1.02716034,62762.0,62761.0,0.0014]
[1727793085773,0.160072,62746.0,62741.0,0.0014]
[1727793085990,0.7943198,62746.0,62741.0,0.0014]
[1727793086408,0.8193046,62746.0,62741.0,0.0014]
[1727793087054,0.8193046,62746.0,62741.0,0.160783]
[1727793087280,0.8193046,62746.0,62741.0,0.160784]
[1727793087491,0.8193046,62746.0,62743.0,0.159378]
[1727793087492,0.6599326,62746.0,62743.0,0.159378]
[1727793087707,0.6599326,62746.0,62745.0,0.160198]
[1727793087915,0.6599326,62746.0,62745.0,0.161198]
[1727793088143,0.5097748,62746.0,62745.0,0.161198]
[1727793088358,0.5027748,62746.0,62745.0,0.261198]
[1727793088793,0.5097748,62746.0,62745.0,0.261198]
[1727793089226,0.48179,62746.0,62745.0,0.261198]
[1727793089466,0.48579,62746.0,62745.0,0.261198]
[1727793090164,0.48579,62746.0,62745.0,0.284198]
[1727793090389,0.48579,62746.0,62745.0,0.8667359]
[1727793090642,0.48179,62746.0,62745.0,0.8667359]
[1727793090885,0.45429,62746.0,62745.0,2.59827459]
[1727793091129,0.363665,62746.0,62745.0,3.33724159]
[1727793091365,0.27460076,62746.0,62745.0,3.2972549]
[1727793091602,0.27360076,62746.0,62745.0,3.2972549]
[1727793091892,0.0007,62773.0,62745.0,3.2972549]
[1727793091893,0.23936234,62771.0,62770.0,0.1]
[1727793092141,0.22331862,62771.0,62770.0,1.0406589]
[1727793092380,0.23936234,62785.0,62777.0,0.260294]
[1727793092612,0.001646,62778.0,62777.0,0.4397518]
[1727793092844,0.001646,62778.0,62777.0,1.0796909]
[1727793093039,0.001646,62778.0,62777.0,1.0839909]
[1727793093251,0.001646,62778.0,62777.0,1.0796909]
[1727793093681,0.001646,62778.0,62777.0,0.260294]
[1727793094768,0.001646,62778.0,62777.0,0.261294]
[1727793095192,0.02661457,62778.0,62777.0,0.260294]
[1727793095407,0.02961457,62778.0,62777.0,0.260294]
[1727793095840,0.02661457,62778.0,62777.0,0.260294]
[1727793096277,0.02661457,62778.0,62777.0,0.8658319]
[1727793097068,0.02661457,62778.0,62777.0,0.8688319]
[1727793097497,0.02661457,62778.0,62777.0,0.286294]
[1727793097944,0.02961457,62778.0,62777.0,0.286294]
[1727793098371,0.02661457,62778.0,62777.0,0.263294]
[1727793098591,0.02661457,62778.0,62777.0,0.260294]
[1727793098803,0.02761457,62778.0,62777.0,0.261294]
[1727793099020,0.02861457,62778.0,62777.0,0.268294]
[1727793099443,0.02761457,62778.0,62777.0,0.261294]
[1727793099674,0.02761457,62778.0,62777.0,0.001]
[1727793099675,0.18660557,62778.0,62777.0,0.001]
[1727793099888,0.161637,62778.0,62777.0,0.002]
[1727793100314,0.3180948,62778.0,62777.0,0.002]
[1727793100536,0.0007,62769.0,62768.0,0.159315]
[1727793100999,0.0007,62765.0,62763.0,0.478984]
[1727793101212,0.318603,62774.0,62763.0,0.478984]
[1727793101213,0.2615,62764.0,62763.0,0.159327]
[1727793101636,0.318603,62774.0,62766.0,0.318643]
[1727793101637,0.0007,62769.0,62766.0,0.318643]
[1727793101848,0.0806,62774.0,62765.0,0.001]
[1727793101849,0.0007,62773.0,62767.0,0.00318619]
[1727793102063,0.0007,62773.0,62772.0,0.1]
[1727793102300,0.0007,62773.0,62768.0,0.1]
[1727793102301,0.0007,62769.0,62768.0,0.1]
[1727793102513,0.0007,62769.0,62755.0,0.23936234]
[1727793102514,0.0007,62766.0,62764.0,0.001]
[1727793102729,0.0788,62766.0,62764.0,0.001]
[1727793103159,0.0007,62765.0,62764.0,0.160326]
[1727793103377,0.10307642,62766.0,62765.0,0.159324]
[1727793103611,0.10377642,62766.0,62764.0,0.001]
[1727793103825,0.10377642,62766.0,62764.0,0.160325]
[1727793104043,0.10377642,62766.0,62765.0,0.159324]
[1727793104769,0.10377642,62766.0,62764.0,0.160326]
[1727793104992,0.10377642,62766.0,62765.0,0.159324]
[1727793105198,0.02497642,62766.0,62765.0,0.159324]
[1727793105412,0.02497642,62766.0,62765.0,0.259324]
[1727793105622,0.03397642,62766.0,62765.0,0.259324]
[1727793105841,0.03147642,62766.0,62765.0,0.259324]
[1727793106062,0.03047642,62766.0,62765.0,0.26351024]
[1727793106271,0.03047642,62766.0,62765.0,0.260324]
[1727793106698,0.02247642,62766.0,62765.0,0.259324]
[1727793106914,0.03217642,62766.0,62765.0,0.159324]
[1727793107150,0.03217642,62766.0,62765.0,0.259324]
[1727793107357,0.03217642,62766.0,62764.0,0.001]
[1727793107565,0.0007,62765.0,62764.0,0.160327]
[1727793108004,0.0007,62765.0,62764.0,0.001]
[1727793108224,0.0007,62765.0,62754.0,0.318701]
[1727793108225,0.0007,62764.0,62763.0,0.159329]
[1727793108701,0.02247642,62766.0,62765.0,0.159324]
[1727793109160,0.03017642,62766.0,62760.0,0.318672]
[1727793109386,0.0007,62761.0,62745.0,0.24018534]
[1727793109616,0.0007,62749.0,62746.0,0.55810634]
[1727793109858,0.0007,62749.0,62747.0,0.15937]
[1727793110077,0.0007,62749.0,62747.0,0.159368]
[1727793110299,0.0007,62747.0,62745.0,0.000823]
[1727793110509,0.0007,62746.0,62745.0,0.000823]
[1727793111151,0.0007,62747.0,62745.0,0.000823]
[1727793111374,0.0007,62747.0,62746.0,0.478117]
[1727793111988,0.0007,62747.0,62746.0,0.578117]
[1727793112213,0.0007,62747.0,62745.0,0.000823]
[1727793112214,0.0777,62746.0,62745.0,0.000823]
[1727793112420,0.2341578,62746.0,62745.0,0.000823]
[1727793112631,0.2351578,62746.0,62745.0,0.000823]
[1727793113051,0.53157508,62746.0,62745.0,0.000823]
[1727793113476,0.42651449,62746.0,62745.0,0.000823]
[1727793113683,0.26714249,62746.0,62745.0,0.000823]
[1727793113887,0.26814249,62746.0,62745.0,0.000823]
[1727793114300,0.27414249,62746.0,62745.0,0.000823]
[1727793114720,0.75226249,62746.0,62745.0,0.000823]
[1727793115148,0.74326249,62746.0,62745.0,0.000823]
[1727793115562,0.75126249,62746.0,62745.0,0.000823]
[1727793115773,0.58080469,62746.0,62745.0,0.000823]
[1727793116025,0.59780469,62746.0,62745.0,0.000823]
[1727793116434,0.48980469,62746.0,62745.0,0.160198]
[1727793116846,0.48312,62746.0,62745.0,0.160198]
[1727793117067,0.50810336,62746.0,62745.0,0.000823]
[1727793117285,0.78053595,62746.0,62745.0,0.000823]
[1727793117513,0.82393316,62746.0,62745.0,0.000823]
[1727793117730,1.09636575,62746.0,62745.0,0.000823]
[1727793118156,0.82393316,62746.0,62745.0,0.000823]
[1727793118367,1.09636575,62746.0,62745.0,0.000823]
[1727793118589,1.10536575,62746.0,62745.0,0.000823]
[1727793118801,0.83293316,62746.0,62745.0,0.000823]
[1727793119010,0.82793316,62746.0,62745.0,0.000823]
[1727793119233,0.82968521,62746.0,62745.0,0.000823]
[1727793119440,0.92568521,62746.0,62745.0,0.000823]
[1727793119646,0.92168521,62746.0,62745.0,0.000823]
[1727793120384,0.159382,62742.0,62741.0,0.0004]
[1727793120626,0.159382,62742.0,62738.0,0.000823]
[1727793120627,0.15939,62739.0,62738.0,0.000823]
[1727793120855,0.427708,62732.0,62731.0,0.0001]
[1727793121093,1.32911839,62732.0,62731.0,0.0001]
[1727793121334,1.48556517,62732.0,62731.0,0.0001]
[1727793121774,1.34549037,62732.0,62731.0,0.0001]
[1727793123609,1.3456523,62732.0,62731.0,0.0001]
[1727793123880,1.3456523,62732.0,62717.0,0.39880734]
[1727793123881,1.53005801,62732.0,62717.0,0.39880734]
[1727793124104,0.4454243,62731.0,62717.0,0.23936234]
[1727793124334,0.4454243,62731.0,62715.0,0.1]
[1727793124335,0.159433,62722.0,62715.0,0.1]
[1727793124557,0.64848691,62722.0,62715.0,0.1]
[1727793125023,0.67348147,62722.0,62715.0,0.1]
[1727793125258,1.02283927,62722.0,62713.0,0.0132975]
[1727793125451,0.63078659,62714.0,62713.0,0.0132975]
[1727793125738,1.1198405,62714.0,62713.0,0.0132975]
[1727793126124,1.30392928,62714.0,62713.0,0.0132975]
[1727793126338,1.05649571,62714.0,62713.0,0.0132975]
[1727793127899,1.07049571,62714.0,62713.0,0.0132975]
[1727793128110,0.91104171,62714.0,62713.0,0.0132975]
[1727793128325,0.55568391,62714.0,62713.0,0.0132975]
[1727793128780,0.54205293,62714.0,62713.0,0.0132975]
[1727793129194,0.52551902,62714.0,62713.0,0.0132975]
[1727793129426,0.54263193,62714.0,62713.0,0.2727535]
[1727793129627,0.54263193,62714.0,62713.0,0.1132975]
[1727793129628,0.52551902,62714.0,62713.0,0.1132975]
[1727793129845,0.52860716,62714.0,62713.0,0.0132975]
[1727793130076,0.55594945,62714.0,62713.0,0.0132975]
[1727793130309,0.54194945,62714.0,62713.0,0.0132975]
[1727793130753,0.56994945,62714.0,62713.0,0.0132975]
[1727793130962,0.55594945,62714.0,62713.0,0.0132975]
[1727793131181,0.51460716,62714.0,62713.0,0.0132975]
[1727793131426,0.52860716,62714.0,62713.0,0.0132975]
[1727793131651,0.52860716,62714.0,62713.0,0.1132975]
[1727793131860,0.52560716,62714.0,62713.0,0.1132975]
[1727793132525,0.52560716,62714.0,62713.0,0.2727535]
[1727793132742,0.52560716,62714.0,62713.0,0.2957535]
[1727793132967,0.50851902,62714.0,62713.0,0.1727535]
[1727793133196,0.5145731,62714.0,62713.0,0.2727535]
[1727793133636,0.5185731,62714.0,62713.0,0.2727535]
[1727793133846,0.5185731,62714.0,62713.0,0.1132975]
[1727793134047,0.5145731,62714.0,62713.0,0.1132975]
[1727793134275,0.5145731,62714.0,62713.0,0.0132975]
[1727793134478,0.5145731,62714.0,62713.0,0.2727535]
[1727793134479,0.5155731,62714.0,62713.0,0.2727535]
[1727793134828,0.49851902,62714.0,62713.0,0.1132975]
[1727793135049,0.51454871,62714.0,62713.0,0.2727535]
[1727793135315,0.52755059,62714.0,62713.0,0.1132975]
[1727793135771,0.55491068,62714.0,62713.0,0.0132975]
[1727793136001,0.67636566,62714.0,62713.0,0.0132975]
[1727793136234,0.86081944,62714.0,62713.0,0.0132975]
[1727793136728,0.86581944,62714.0,62713.0,0.0132975]
[1727793136947,0.86281944,62714.0,62713.0,0.0132975]
[1727793137617,0.54190764,62714.0,62713.0,0.0132975]
[1727793137911,0.85781944,62714.0,62713.0,0.0132975]
[1727793138373,0.85785269,62714.0,62713.0,0.0132975]
[1727793139072,0.86085269,62714.0,62713.0,0.0132975]
[1727793139307,0.85785269,62714.0,62713.0,0.0132975]
[1727793139748,0.87436953,62714.0,62713.0,0.0132975]
[1727793139956,0.86337355,62714.0,62713.0,0.0132975]
[1727793140185,0.87437355,62714.0,62713.0,0.0132975]
[1727793140407,0.86037355,62714.0,62713.0,0.0132975]
[1727793140637,0.55846175,62714.0,62713.0,0.0132975]
[1727793140869,0.55846175,62714.0,62713.0,0.1132975]
[1727793141106,0.54446175,62714.0,62713.0,0.1132975]
[1727793141330,0.54446175,62714.0,62713.0,0.47537831]
[1727793141555,0.51694491,62714.0,62713.0,0.47537831]
[1727793141744,0.4896065,62714.0,62713.0,0.48037831]
[1727793141999,0.48652,62714.0,62713.0,0.48037831]
[1727793142222,0.50375066,62714.0,62713.0,0.2957535]
[1727793142437,0.53132923,62714.0,62713.0,0.2957535]
[1727793142676,0.50375432,62714.0,62713.0,0.4600199]
[1727793142982,0.47352,62714.0,62713.0,0.4582113]
[1727793143207,0.49851097,62714.0,62713.0,0.4582113]
[1727793143442,0.51478781,62714.0,62713.0,0.4296663]
[1727793143674,0.51478781,62714.0,62713.0,0.4286663]
[1727793143902,0.51478781,62714.0,62713.0,0.4296663]
[1727793143903,0.51578781,62714.0,62713.0,0.4296663]
[1727793144137,0.48979684,62714.0,62713.0,0.4286663]
[1727793144589,0.47252,62714.0,62713.0,0.7886663]
[1727793144827,0.47252,62714.0,62713.0,0.7906663]
[1727793145073,0.47452,62714.0,62713.0,0.7906663]
[1727793145321,0.42984844,62714.0,62713.0,0.4336663]
[1727793145746,0.47022231,62714.0,62713.0,0.4226663]
[1727793145749,0.47022231,62714.0,62713.0,0.2432085]
[1727793146003,0.49903358,62714.0,62713.0,0.2462085]
[1727793146254,0.50003358,62714.0,62713.0,0.2472085]
[1727793146512,0.49803358,62714.0,62713.0,0.2432085]
[1727793146833,0.47504289,62714.0,62713.0,0.2472085]
[1727793147069,0.47504289,62714.0,62713.0,0.2702085]
[1727793147304,0.47404289,62714.0,62713.0,0.185456]
[1727793147602,0.47904289,62714.0,62713.0,0.003]
[1727793147875,0.84285898,62714.0,62713.0,0.003]
[1727793148217,0.159464,62710.0,62709.0,0.2]
[1727793148477,0.93937024,62710.0,62709.0,0.2]
[1727793148736,0.82810689,62710.0,62709.0,0.2]
[1727793148960,0.66864289,62710.0,62709.0,0.2]
[1727793149403,0.90650689,62710.0,62709.0,0.2]
[1727793149622,1.21941147,62710.0,62709.0,0.2]
[1727793149864,1.06296469,62710.0,62709.0,0.2]
[1727793150326,1.07696469,62710.0,62709.0,0.2]
[1727793150789,1.06296469,62710.0,62709.0,0.2]
[1727793151016,0.91250069,62710.0,62709.0,0.2]
[1727793151274,0.91550689,62710.0,62709.0,0.2]
[1727793151518,0.88469144,62710.0,62692.0,0.1]
[1727793151803,0.159483,62703.0,62694.0,0.23936234]
[1727793152069,0.45566476,62702.0,62695.0,0.1595]
[1727793152329,0.45566476,62702.0,62687.0,0.319041]
[1727793152330,0.04520152,62701.0,62700.0,0.159489]
[1727793153411,0.04520152,62701.0,62700.0,0.259489]
[1727793153585,0.04520152,62701.0,62700.0,0.282489]
[1727793153851,0.04520152,62701.0,62700.0,0.284489]
[1727793154336,0.04520152,62701.0,62700.0,0.102]
[1727793154844,0.04520152,62701.0,62700.0,0.002]
[1727793155069,0.47304996,62701.0,62700.0,0.002]
[1727793155289,0.63253696,62701.0,62700.0,0.002]
[1727793155506,0.63253696,62701.0,62699.0,0.159491]
[1727793155507,0.47304996,62701.0,62699.0,0.159491]
[1727793155729,0.47304996,62701.0,62697.0,0.09413817]
[1727793155730,0.04520152,62700.0,62697.0,0.09413817]
[1727793155949,0.42884844,62701.0,62700.0,0.161489]
[1727793156162,0.47564129,62701.0,62700.0,0.161489]
[1727793156385,0.47464129,62701.0,62700.0,0.161489]
[1727793156618,0.47364129,62701.0,62700.0,0.159489]
[1727793156853,0.48364129,62701.0,62700.0,0.159489]
[1727793157078,0.48064129,62701.0,62700.0,0.159489]
[1727793157526,0.48064129,62701.0,62696.0,0.1]
[1727793157757,0.04579285,62700.0,62687.0,0.023]
[1727793157972,0.43484844,62701.0,62700.0,0.1]
[1727793158228,0.63976805,62701.0,62691.0,0.31902]
[1727793158501,0.63976805,62701.0,62699.0,0.159492]
[1727793158502,0.04543261,62700.0,62699.0,0.159492]
[1727793158749,0.04543261,62700.0,62699.0,0.1]
[1727793158980,0.04543261,62700.0,62699.0,0.259492]
[1727793159431,0.04543261,62700.0,62699.0,0.1]
[1727793159650,0.04543261,62700.0,62699.0,0.259492]
[1727793160112,0.04543261,62700.0,62698.0,0.1]
[1727793160344,0.05174726,62700.0,62699.0,0.1]
[1727793160578,0.05174726,62700.0,62698.0,0.159494]
[1727793160579,0.32784844,62699.0,62698.0,0.159494]
[1727793160863,0.32784844,62699.0,62690.0,0.1]
[1727793160864,0.34544354,62699.0,62690.0,0.1]
[1727793161158,0.34544354,62699.0,62687.0,0.15952]
[1727793161159,0.318995,62697.0,62687.0,0.15952]
[1727793161396,0.159515,62690.0,62683.0,0.159531]
[1727793161612,0.34544354,62689.0,62686.0,0.159523]